Cogmind - Beta 16 --- EXPLORER MODE // 2025.11.21 @ 11:40:35 Player: K.K.Y. Result: Destroyed by BD-SGH(R) with Subdweller Machine Gun Performance ------------- Evolutions (0) 0 Regions Visited (3) 600 Robots Destroyed (40) 200 Value Destroyed (871) 871 Prototype IDs (12) 240 Alien Tech Used (0) 0 Bonus (97) 97 TOTAL SCORE: 2008 Bonus ------- Follower Combat Kills 97 Cogmind --------- Core Integrity 0/250 Matter 172/300 Energy 146/150 System Corruption 0% Temperature Cool (9) Movement Walking (120) Location -10/Subcaves Parts ------- > --- POWER (1) -------- Light Angular Momentum Engine > --- PROPULSION (2) --- Carbon-fiber Leg Carbon-fiber Leg > --- UTILITY (3) ------ Medium Storage Unit Improved Terrain Scanner Terrain Scan Processor > --- WEAPON (2) ------- Slug Cannon > --- INVENTORY (10) --- Light Nuclear Core Light Treads Huge Storage Unit Structural Scanner Terrain Scan Processor Seismic Detector Power Bank Battle Cannon Ripper Ripper Peak State ------------ > --- POWER ------------ Light Angular Momentum Engine > --- PROPULSION ------- Carbon-fiber Leg Carbon-fiber Leg > --- UTILITY ---------- Medium Storage Unit Improved Terrain Scanner Terrain Scan Processor > --- WEAPON ----------- Battle Cannon Slug Cannon > --- INVENTORY -------- Light Nuclear Core Light Treads Huge Storage Unit Structural Scanner Terrain Scan Processor Seismic Detector Battle Cannon Welding Torch Ripper Ripper [Rating: 25] Favorites ----------- Power Ion Engine Engine Ion Engine Propulsion Carbon-fiber Leg Treads Light Treads Leg Carbon-fiber Leg Wheel Compact Wheel Utility Medium Storage Unit Device Improved Terrain Scanner Storage Medium Storage Unit Processor Terrain Scan Processor Weapon Beam Cannon Energy Cannon Beam Cannon Ballistic Gun Assault Rifle Ballistic Cannon Battle Cannon Special Weapon Mining Laser Slashing Weapon Ripper Build | -11 -10 -10 -10 ------- Run | Yrd Mat Min Sub Slots Evolved 1 | . 1 . . Power . | . . . . Propulsion . | . . . . Utility 1 | . 1 . . Weapon . | . . . . Parts Attached 27 | 5 13 1 8 Power 3 | 1 1 . 1 Engine 3 | 1 1 . 1 Core . | . . . . Reactor . | . . . . Propulsion 12 | 2 8 . 2 Treads 1 | . 1 . . Leg 5 | 2 1 . 2 Wheel 6 | . 6 . . Hover . | . . . . Flight . | . . . . Utility 4 | 1 2 1 . Device 2 | . 1 1 . Storage 1 | 1 . . . Processor 1 | . 1 . . Hackware . | . . . . Protection . | . . . . Artifact . | . . . . Weapon 8 | 1 2 . 5 Energy Gun . | . . . . Energy Cannon 2 | . 2 . . Ballistic Gun 1 | 1 . . . Ballistic Cannon 3 | . . . 3 Launcher . | . . . . Special Weapon 1 | . . . 1 Impact Weapon . | . . . . Slashing Weapon 1 | . . . 1 Piercing Weapon . | . . . . Special Melee Weapon . | . . . . Unidentified Prototypes . | . . . . Parts Lost 3 | . . . 3 Power . | . . . . Propulsion 1 | . . . 1 Utility . | . . . . Weapon 2 | . . . 2 Highest Loss Streak 1 | . . . 1 To Critical Strikes . | . . . . Average Backups 8 | . 5 9 9 Power . | . . . 1 Propulsion 1 | . 1 2 1 Utility 3 | . 2 3 4 Weapon 1 | . . 1 2 Tool/Special . | . . . . Unused Backups 13 | . 3 1 9 Power 1 | . . . 1 Propulsion 1 | . 1 . . Utility 8 | . 2 1 5 Weapon 2 | . . . 2 Tool/Special 1 | . . . 1 Average Slot Usage (%) 91 | . 78 100 98 Engine 12 | . 12 12 12 Leg 13 | . 9 . 19 Wheel 9 | . 10 25 4 Device 11 | . 9 12 12 Storage 12 | . 12 12 12 Processor 8 | . 2 12 12 Energy Cannon 10 | . 16 25 3 Ballistic Gun 1 | . 3 . . Ballistic Cannon 7 | . . . 14 Special Weapon 1 | . . . 2 Slashing Weapon 1 | . . . 3 Peak Build Rating 25 | 5 12 12 25 Average Rating 15 | 3 8 11 21 On Entrance 7 | . 5 11 12 Avg Prop Armor Cover (%) 7 | . 7 . . Naked Turns . | . . . . Heaviest Build 30 | 17 22 22 30 Greatest Support 32 | 20 32 32 32 Greatest Overweight (x) 7 | 3 7 . 1 Average Overweight (x) . | . . . . Largest Inventory Capacity 10 | 10 10 10 10 Average Capacity 9 | 9 10 10 10 Most Carried 10 | 1 10 10 10 Average Carried 8 | . 5 9 9 Final Capacity 10 | 10 10 10 10 Final Carried 10 | . 9 9 10 Class Distribution -------------------- 58% | Hacker-Mutant 41% | Scavenger-Mutant Dominant Class ---------------- Hacker-Mutant | -10/Materials Hacker-Mutant | -10/Mines Scavenger-Mutant | -10/Subcaves Resources | -11 -10 -10 -10 ----------- Run | Yrd Mat Min Sub Matter Collected 1068 | 38 547 10 473 Remotely . | . . . . Salvage Created 972 | . 496 267 209 Parts 86 | . 38 33 15 Haulers Intercepted 2 | . 2 . . Recyclers Shooed 1 | . . 1 . Parts Field Recycled . | . . . . Retrieved Matter . | . . . . Parts Self-Destructed . | . . . . Prevented . | . . . . Parts Restored . | . . . . Kills | -11 -10 -10 -10 ------- Run | Yrd Mat Min Sub Combat Hostiles Destroyed 21 | . 7 4 10 Melee 1 | . . . 1 Guns 5 | . 5 . . Cannons 15 | . 2 4 9 Classes Destroyed 10 | . 7 . 3 Worker 2 | . 2 . . Builder 4 | . 2 2 . Tunneler 7 | . 1 6 . Hauler 2 | . 2 . . Turret 2 | . . . 2 Watcher 2 | . 2 . . Swarmer 5 | . 1 2 2 Grunt 11 | . 6 2 3 Sentry 1 | . . . 1 Subdweller 4 | . . . 4 Best Kill Streak 4 | . 2 2 4 Combat Bots Only 2 | . 2 2 2 Max Kills in Single Turn 1 | . 1 1 1 Gunslinging . | . . . . Exploded . | . . . . Melee 1 | . . . 1 Uniques/NPCs Destroyed . | . . . . Combat | -11 -10 -10 -10 -------- Run | Yrd Mat Min Sub Hostile Shots Fired 170 | . 46 6 118 Missed 55 | . 11 3 41 Hits 115 | . 35 3 77 Projectile 115 | . 35 3 77 Critical Strikes 2 | . 1 . 1 Damage Taken 1095 | . 288 14 793 Core 257 | . 48 4 205 Absorbed by Shields . | . . . . Ignored by Resistances 649 | . 181 10 458 Core Remaining (%) 100 | 100 . . . Volleys Fired 177 | . 74 18 85 Largest 2 | . 2 2 2 Hottest 133 | . 120 120 133 Shots Fired 256 | . 90 36 130 Gun 58 | . 58 . . Cannon 188 | . 32 36 120 Launcher . | . . . . Special 10 | . . . 10 Kinetic 156 | . 58 . 98 Thermal 100 | . 32 36 32 Explosive . | . . . . Electromagnetic . | . . . . Robot Hit Streak 19 | . 18 13 19 Robot Miss Streak 2 | . 2 2 2 Penetration Max . | . . . . Secondary Targets . | . . . . Shots Hit Robots 178 | . 76 23 79 Core Hits 56 | . 21 13 22 Critical Kills . | . . . . Critical Parts Destroyed 2 | . 1 . 1 Critical Strikes 5 | . 1 . 4 Destroy 4 | . 1 . 3 Blast 1 | . . . 1 Melee Attacks 7 | . . . 7 Impact . | . . . . Slashing 7 | . . . 7 Piercing . | . . . . Sneak Attacks . | . . . . Combat Hostiles . | . . . . Follow-up Attacks . | . . . . Damage Inflicted 3166 | . 1050 400 1716 Guns 625 | . 625 . . Cannons 2319 | . 419 400 1500 Explosions . | . . . . Melee 168 | . . . 168 Ramming 6 | . 6 . . Kinetic 1829 | . 625 . 1204 Thermal 1163 | . 419 400 344 Explosive . | . . . . Electromagnetic . | . . . . Impact . | . . . . Slashing 168 | . . . 168 Piercing . | . . . . Highest Corruption . | . . . . Average Corruption . | . . . . Corruption Purged . | . . . . Corruption Blocked . | . . . . Overload Shots . | . . . . Overflow Damage 26 | . 13 . 13 Projectiles 26 | . 13 . 13 Explosions . | . . . . Melee . | . . . . Knockbacks 13 | . . . 13 Impact . | . . . . Kinetic 12 | . . . 12 Secondary 1 | . . . 1 Self-Inflicted Damage . | . . . . Shots . | . . . . Rammed . | . . . . Targets Rammed 2 | . 2 . . Kicked 2 | . 2 . . Crushed . | . . . . Highest Temperature 238 | . 238 180 6 Average Temperature 65 | . 72 59 6 Received Heat Transfer 615 | . 246 . 369 Siege Activations . | . . . . Martial Activations . | . . . . Shielding Activations . | . . . . Robots Disrupted . | . . . . Combat Hostiles . | . . . . Robots Corrupted . | . . . . Combat Hostiles . | . . . . Parts Fried . | . . . . Impact Corruptions . | . . . . Robots Melted . | . . . . Combat Hostiles . | . . . . Parts Melted . | . . . . Heat Transferred 2468 | . 888 851 729 Parts Sabotaged . | . . . . Parts Stolen . | . . . . Parts Stripped . | . . . . Power Chain Reactions . | . . . . Alert | -11 -10 -10 -10 ------- Run | Yrd Mat Min Sub Maximum Alert Level . | . . . . Low Security (%) 100 | 100 100 100 . Level 1 . | . . . . Level 2 . | . . . . Level 3 . | . . . . Level 4 . | . . . . Level 5 . | . . . . High Security . | . . . . Max Security . | . . . . Peak Influence 50 | . 40 50 . Initial . | . . . . Average 3 | . 2 6 . Influence Increases 617 | . 242 155 220 Destroy 0b10 Robot/C 400 | . 140 80 180 Destroy 0b10 Robot/NC 85 | . 45 40 . Destroy Leader 68 | . 38 20 10 Disable Machine 4 | . 4 . . Lose Combat Pursuer 60 | . 15 15 30 Influence Decreases 617 | . 242 155 220 Time Decay 597 | . 242 155 200 Lost Ally 20 | . . . 20 Squads Dispatched . | . . . . Investigation . | . . . . Extermination . | . . . . Reinforcement . | . . . . Assault . | . . . . Garrison . | . . . . Intercept . | . . . . Searches Triggered . | . . . . Construction Impeded . | . . . . Haulers Reinforced . | . . . . Active Scanning Responses . | . . . . Cargo Convoy Interrupts . | . . . . Stealth | -11 -10 -10 -10 --------- Run | Yrd Mat Min Sub Distress Signals 1 | . 1 . . Communications Jammed . | . . . . Distress Signals . | . . . . Times Spotted 38 | . 12 5 21 Peak Tracking Total 6 | . 3 2 6 Tactical Retreats 3 | . 1 1 1 Traps | -11 -10 -10 -10 ------- Run | Yrd Mat Min Sub Traps Triggered 2 | . 1 . 1 Indirectly . | . . . . Trap Hack Attempts . | . . . . Triggered . | . . . . Disarmed . | . . . . Reprogrammed . | . . . . Reused . | . . . . Traps Extracted . | . . . . Installed . | . . . . Triggered . | . . . . Machines | -11 -10 -10 -10 ---------- Run | Yrd Mat Min Sub Machines Disabled 4 | . 1 . 3 Max in Single Turn 1 | . 1 . 1 Machines Repaired . | . . . . Machines Dismantled . | . . . . Machines Sabotaged . | . . . . Overloaded Fab Kills . | . . . . Hacking | -11 -10 -10 -10 --------- Run | Yrd Mat Min Sub Machines Accessed 3 | . 2 . 1 Terminals 1 | . 1 . . Fabricators . | . . . . Repair Stations . | . . . . Recycling Units 1 | . 1 . . Scanalyzers . | . . . . Garrison Access . | . . . . Total Hacks 13 | . 4 . 9 Successful 12 | . 3 . 9 Failed 1 | . 1 . . Catastrophic . | . . . . Database Lockouts . | . . . . Manual . | . . . . Terminals 2 | . 2 . . Fabricators . | . . . . Repair Stations . | . . . . Recycling Units 2 | . 2 . . Scanalyzers . | . . . . Garrison Access . | . . . . Terminal Hacks 10 | . 1 . 9 Record 8 | . . . 8 Robot Analysis 1 | . 1 . . Proto ID Catalog 1 | . . . 1 Fabricator Hacks . | . . . . Repair Station Hacks . | . . . . Recycling Unit Hacks 2 | . 2 . . Report Inventory 1 | . 1 . . Retrieve Components 1 | . 1 . . Scanalyzer . | . . . . Garrison Access Hacks . | . . . . Unauthorized Hacks . | . . . . Terminals . | . . . . Fabricators . | . . . . Repair Stations . | . . . . Recycling Units . | . . . . Scanalyzers . | . . . . Garrison Access . | . . . . Data Cores Recovered . | . . . . Used . | . . . . Hacking Detections 1 | . 1 . . Full Trace Events . | . . . . Feedback Events . | . . . . Feedback Blocked . | . . . . Robot Schematics Acquired . | . . . . Robots Built . | . . . . Authchips . | . . . . Time . | . . . . Total Robot Build Rating . | . . . . Part Schematics Acquired . | . . . . Parts Built . | . . . . Authchips . | . . . . Time . | . . . . Total Part Build Rating . | . . . . Part Studies Acquired . | . . . . Parts Repaired . | . . . . Time . | . . . . Parts Recycled . | . . . . Recycled Matter . | . . . . Retrieved Matter . | . . . . Retrieved Components 9 | . 9 . . Parts Scanalyzed . | . . . . Part Schematics Acquired . | . . . . Parts Damaged . | . . . . Bothacking | -11 -10 -10 -10 ------------ Run | Yrd Mat Min Sub Used RIF Installer . | . . . . Robots Hacked . | . . . . Non-combat . | . . . . Combat . | . . . . Robot Hacks Applied . | . . . . Relay Couplers Released . | . . . . Fabnet Peak Effective % . | . . . . Robots Rewired . | . . . . Allies Hacked . | . . . . Hacks Repelled . | . . . . Allies | -11 -10 -10 -10 -------- Run | Yrd Mat Min Sub Total Allies 2 | . . 2 . Largest Group 2 | . . 2 2 Highest-Rated Group 43 | . . 43 43 Highest-Rated Ally 31 | . . 31 31 Total Orders . | . . . . Ally Attacks 29 | . . . 29 Total Damage 568 | . . . 568 Kills 4 | . . . 4 Allies Corrupted . | . . . . Allies Melted . | . . . . Intel | -11 -10 -10 -10 ------- Run | Yrd Mat Min Sub Active Infowar (turns) 4480 | . 1281 631 2568 Terrain 4480 | . 1281 631 2568 Robot Analysis Total 1 | . 1 . . Derelict Logs Recovered 2 | . . 1 1 Drone Launches . | . . . . Drone Recoveries . | . . . . Exploration | -11 -10 -10 -10 ------------- Run | Yrd Mat Min Sub Turns Passed 4920 | 51 1670 631 2568 Spaces Moved 3420 | 36 1265 518 1601 Core 9 | 6 3 . . Treads 30 | . 30 . . Legs 1704 | 30 378 . 1296 Wheels 1677 | . 854 518 305 Hover . | . . . . Flight . | . . . . Fastest Speed 50 | 50 90 100 100 Average Speed 113 | 116 113 100 117 Slowest Speed 400 | 200 400 100 190 Overloaded Moves . | . . . . Propulsion Burnouts . | . . . . Robots Hopped . | . . . . Potential Cave-ins 7 | . . . 7 Cave-ins Triggered . | . . . . Exploration Rate (%) 69 | 3 99 94 80 Regions Visited 3 Branch Regions 2 Pre-discovered Areas 1 | . . 1 . Known Exits Taken 3 | 1 1 1 . Unknown Exits Taken . | . . . . Scrap Searched 10 | . . . 10 Spaces Dug 8 | . . . 8 Terrain Destroyed 12 | . . . 12 Melee . | . . . . Projectile 12 | . . . 12 AOE . | . . . . Terrain Rammed . | . . . . Walls Destroyed . | . . . . Machines Disabled . | . . . . Actions | -11 -10 -10 -10 --------- Run | Yrd Mat Min Sub Total 4191 | 45 1413 597 2136 Wait 494 | . 21 54 419 Move 3417 | 35 1264 517 1601 Hop . | . . . . Pick Up 33 | 5 19 3 6 Fast Attach 4 | . 2 . 2 Attach 13 | 5 6 . 2 Detach 5 | . 4 . 1 Swap 15 | . 9 1 5 Drop 24 | . 12 4 8 Fire 177 | . 74 18 85 Melee 7 | . . . 7 Ram . | . . . . Kick 2 | . 2 . . Crush . | . . . . Escape Stasis . | . . . . Rewire . | . . . . Trap . | . . . . Miscellaneous . | . . . . Route ------- -11/Scrapyard -10/Materials (discovered 5 exits: *Mat x3 / *Min / *Sub) -10/Mines (discovered 3 exits: *Mat x2 / *Sub) -10/Subcaves (discovered 3 exits: *Mat x2 / *Rec) History --------- Turn | Location | Event 11 | -11/Scrapyard | Identified exit to Materials 11 | -11/Scrapyard | Discovered exit to Materials (range 16) 52 | -11/Scrapyard | Entered Materials 52 | -10/Materials | Evolved 1 slot: Utility x1 294 | -10/Materials | Identified exit to Materials 294 | -10/Materials | Discovered exit to Materials (range 12) 301 | -10/Materials | Build established: Hacker-Mutant 355 | -10/Materials | Identified exit to Subcaves 355 | -10/Materials | Discovered exit to Subcaves (range 7) 552 | -10/Materials | Derelicts attacked the area 623 | -10/Materials | Discovered exit to Materials (range 15) 867 | -10/Materials | Identified exit to Mines 867 | -10/Materials | Discovered exit to Mines (range 12) 963 | -10/Materials | Discovered exit to Materials (range 15) 1722 | -10/Materials | Entered Mines 1730 | -10/Mines | Discovered exit to Subcaves (range 9) 1938 | -10/Mines | Discovered exit to Materials (range 12) 1975 | -10/Mines | Learned Materials trap positions 2143 | -10/Mines | A weapon hastily lodged in a ceiling crevice suddenly fell to the ground 2324 | -10/Mines | Discovered exit to Materials (range 5) 2325 | -10/Mines | Learned location of Storage (-7) 2353 | -10/Mines | Entered Subcaves 2353 | -10/Subcaves | Accompanied by 2 allies 2358 | -10/Subcaves | Led the pair of lost Derelicts to an unsafe place 2619 | -10/Subcaves | Shifting Twisted Machinery released Sub. Machine Gun 2635 | -10/Subcaves | Shifting Twisted Machinery released Battle Cannon 2809 | -10/Subcaves | Identified exit to Recycling 2809 | -10/Subcaves | Discovered exit to Recycling (range 12) 2820 | -10/Subcaves | Core integrity fell below 50% 3164 | -10/Subcaves | Build established: Scavenger-Mutant 3347 | -10/Subcaves | Shifting Twisted Machinery released Sub. Monowheel 3351 | -10/Subcaves | Identified exit to Materials 3351 | -10/Subcaves | Discovered exit to Materials (range 9) 3982 | -10/Subcaves | Discovered exit to Materials (range 14) 4066 | -10/Subcaves | Learned 2 Materials zone layouts 4187 | -10/Subcaves | Visited 4L-MR0's lab 4211 | -10/Subcaves | Found Power Bank 4892 | -10/Subcaves | Core integrity fell below 20% 4921 | -10/Subcaves | Destroyed by BD-SGH(R) with Subdweller Machine Gun Last Messages --------------- 04823_ Searching scrap... 04823_ Found Sub. Power Source. 04823_ Found Sub. Optics. 04823_ Found 40 Matter. 04824_ Acquired 40 matter. 04824_ Searching scrap... 04824_ Found Flamer. 04824_ Found Riot Gun. 04824_ Found 53 Matter. 04825_ Acquired 53 matter. 04884_ JX-TPN(R) knocked back. 04893_ II-3ZM(R) suffers critical hit (Destroy). 04904_ JX-TPN(R) knocked back. 04904_ Slug penetrates JX-TPN(R). 04904_ JX-TPN(R) suffers critical hit (Destroy). 04907_ JX-TPN(R) Disposable Heat Sink blasted off. 04907_ Slug penetrates JX-TPN(R). 04907_ JX-TPN(R) destroyed. 04913_ Battle Cannon destroyed. Map ----- +----------------------------------------------------+ | ??????????? ??#?###?####### ###??#?#?#?####### | | ???????????????#?##?##?####"##########???### | | ???????????????#?##?#?##"*|!"##?###?#?#?##?# ### | | ???????????????#?##?#?## [## ###??########## ##?? | | ???????????????#????#?##### ##?#??######### ##### | | ???????????? ???###?#####" #######?############## | | ??????????????#????##??# ## ##?##?############### | | ???????????????????#?### " "######?#??##""" "# | | ???????????????????### # ###???#?#" # | | ???????????????????## ########"% # = | | ?????????????????# ####?##### [ | | ??????????????? ## ## ###?###?###>% * | | ?????????????? #### ########?### | | ??????????????? ###### ###?#?###" ### | | ????????????? ##?##### #??##### % ### | | ????????????? ? #?####?#### ##?##?##""" "### | | ??????????? ?? ##???#??### ##?#?############# | | ????????????? ? ??###??### ####### ???#?##### | | ???????????? ???#?#?#??### #??##? #?######?# | | ?????????????? ?#?##??#?# ####??##??#####?### | | ???????????????##??#?##### #########?### ######## | | ?????????????? ?###???#### # # # #?#?#######?##? | | ??????????#?? ???#?#???# #??##?##?####?# | | ??????????#???##????#??# ####? ?##?##### | | ???????????? ???#??????# ; ### ####???#?##?##### | | ????????#?#??? ??###?### @########????##?#?####### | | ?????????#? ? ??###??#?#R ####??##??###??###?#?#?# | | ??????????# ? ???###??#%%##??#?#?#???###???###???? | | ?????????#?#? ??###??##/R###?#??? ?##???#??#???#?? | | ??????????????????#### %#?? ??? ??####?##??#???#? | | ??????????????????#?? % ##? ? ? ????????? #??? | | ??#?????????##??? ### ###?? ? ?? ?????#?#??##? | | ????????????? ????? ##?? ? ?? ?? ??#??#? #???## | | ????????????#?? ?? % %?# ? ??? ? ? ??## ?####? | | ?#??????????#????"## ???????? ? ?#???#????##??# | | ??????????????? ???## ? ?? ???? ##???????##???? | | ?##?????????????? ? ??? ?? ?????? #???????????##?? | | ??????????????? ? ? ?? ? ? ? ?? ?????????????#?# | | ??????#??????????? ???? ? ?? ? ????????????##### | | ???##??????????????#?# ?#????????????????#??????? | | ?????????????????????????????????????????##???#??? | | ?#????????????????????????????????????????#????#?? | | ??###?????????????????????????????????????#???##?# | | ?####?#???????????????????????????????????????#?## | | #???????????????????????????????????????#?##????## | | ##?#????????????????????????????????????#????##?#? | | ?###???????????????????????????????????????#?#???? | | ??#????#?????????????????????????????????????##?## | | #?##?#????????????????????????????????????#???##?# | | ?#####??#????????????????????????????????##?#???#? | +----------------------------------------------------+ Best States ------------- Heat Dissipation 25 Energy Generation 18 Energy Capacity 250 Matter Stores 300 Matter Capacity 300 Sight Range 16 Terrain Scan Range 16 Terrain Scan Density 85 Resistance: KI 35 Resistance: TH 35 Resistance: EX 35 Resistance: EM 35 Resistance: I 35 Resistance: S 35 Resistance: P 35 Evasion (%) 55 Recoil Reduction 1 Offensive Hacking 20 Item Schematics ----------------- None Robot Schematics ------------------ None Fabricated ------------ Nothing Repaired ---------- Nothing Studied --------- None Alien Tech Used ----------------- None Achievements -------------- None Challenges ------------ None Game ------ Seed GodHypervelocityRocket Manual? 0 Play Time 00:28:48 Cumulative 127.6 hours Start 2025.11.21 @ 10:05:54 End 2025.11.21 @ 11:40:35 Sessions 1 Manual Loads 0 Difficulty Explorer Special Mode None Game No. 150 Rogue 0 Adventurer 0 Explorer 150 Win Type - Total 0 Types 0/0/0/0/0/0/0/0/0/0 Lore% 66 Gallery% 65 Achievement% 50 Wizard Run 0 Options --------- Layout 1 ASCII 0 Keyboard 0 Movement Mouse Keybinds 0 Fullscreen 1 Font 24/Smallcaps Map View 50x35 Zoom Use 0% Tactical HUD 1 Map Filters NONE Filters NONE Steam 1 RUN: 5fe25196-e0c1-4b82-a2be-aa9e16173719